bitfinex/quotes_SOLUSD_20250930
["timestamp","ask_amount","ask_price","bid_price","bid_amount"]
[1759227547101,0.1,206.91,206.87,20.8]
[1759227547307,0.1,206.91,206.9,20.8]
[1759227547620,0.1,206.91,206.9,69.35280149]
[1759227547783,0.1,206.91,206.9,70.04280149]
[1759227548916,0.1,206.91,206.9,74.87605426]
[1759227551192,0.1,206.92,206.9,74.87605426]
[1759227551390,0.1,206.97,206.91,0.69]
[1759227551599,0.1,206.97,206.92,34.28]
[1759227551784,0.1,206.97,206.93,0.69]
[1759227553090,0.1,206.97,206.93,5.52255207]
[1759227553299,0.1,206.97,206.93,26.32255207]
[1759227553507,0.1,206.97,206.94,34.96]
[1759227554408,0.1,206.97,206.96,20.8]
[1759227554597,0.1,206.97,206.96,55.06]
[1759227554798,0.1,206.97,206.96,55.74]
[1759227555811,0.1,206.97,206.96,60.57185156]
[1759227560110,0.1,206.97,206.96,59.89185156]
[1759227561193,0.1,206.97,206.96,39.07185156]
[1759227561400,0.1,206.97,206.96,5.53185156]
[1759227561605,0.1,206.97,206.96,39.07185156]
[1759227566200,0.1,206.97,206.96,39.77185156]
[1759227566415,0.1,207.01,206.99,20.8]
[1759227566596,0.1,207.01,207.0,34.24]
[1759227567396,0.1,207.01,207.0,39.07091787]
[1759227569525,0.1,207.01,207.0,39.77091787]
[1759227570007,0.1,207.01,207.0,39.07091787]
[1759227572716,0.1,207.01,207.0,39.77091787]
[1759227574214,1e-08,207.01,207.0,39.77091787]
[1759227577514,1e-08,207.01,207.0,41.70707314]
[1759227579431,0.1,207.06,207.03,20.8]
[1759227579615,0.1,207.06,207.04,34.22]
[1759227580009,0.1,207.06,207.04,34.92]
[1759227581235,0.1,207.06,207.04,34.22]
[1759227581535,0.1,207.06,207.05,4.82975126]
[1759227582334,0.1,207.06,207.05,26.32975126]
[1759227582525,0.1,207.06,207.05,25.62975126]
[1759227583432,0.78,207.06,207.05,59.84975126]
[1759227583826,0.1,207.06,207.05,25.62975126]
[1759227584031,0.78,207.06,207.05,59.84975126]
[1759227585035,0.1,207.06,207.05,59.84975126]
[1759227588816,0.1,207.06,207.05,60.54975126]
[1759227589719,0.1,207.06,207.05,39.74975126]
[1759227592446,0.1,207.06,207.05,55.0]
[1759227593527,0.78,207.06,207.05,55.0]
[1759227593925,0.1,207.06,207.05,55.0]
[1759227594531,0.1,207.06,207.05,59.82975126]
[1759227594728,0.1,207.06,207.05,25.62975126]
[1759227594939,0.78,207.06,207.05,59.82975126]
[1759227595446,0.1,207.06,207.05,59.82975126]
[1759227598626,0.1,207.06,207.05,60.52975126]
[1759227599043,0.1,207.06,207.05,59.82975126]
[1759227600925,0.68,207.12,207.05,72.60412942]
[1759227601261,0.68,207.11,207.06,20.8]
[1759227601421,0.68,207.11,207.05,20.8]
[1759227601422,20.0,207.09,207.05,20.8]
[1759227601618,0.68,207.08,207.06,34.2]
[1759227602147,20.68,207.12,207.07,0.7]
[1759227602329,20.68,207.12,207.06,20.8]
[1759227602330,0.68,207.11,207.06,20.8]
[1759227602531,20.68,207.1,207.07,34.2]
[1759227602735,0.68,207.09,207.08,34.2]
[1759227602943,0.68,207.09,207.07,34.2]
[1759227603242,0.68,207.08,207.07,34.2]
[1759227603623,0.68,207.08,207.03,20.8]
[1759227603830,0.68,207.06,207.04,34.2]
[1759227604027,0.68,207.06,207.02,25.63045116]
[1759227604234,0.68,207.06,207.03,34.2]
[1759227604640,0.68,207.06,206.99,4.83115126]
[1759227604827,0.68,207.04,206.99,4.83115126]
[1759227605028,2.92345044,207.04,206.99,4.83115126]
[1759227605229,0.68,207.02,207.0,34.2]
[1759227605450,0.68,207.02,206.99,39.03105678]
[1759227605830,0.62,207.01,206.99,39.03105678]
[1759227606249,0.68,207.02,206.99,39.03105678]
[1759227606450,12.07135769,207.11,206.99,39.03105678]
[1759227606451,1.3,207.07,207.0,0.7]
[1759227606623,0.68,207.07,207.01,34.2]
[1759227606827,1.3,207.07,207.01,34.2]
[1759227607443,1.3,207.07,207.02,4.83045116]
[1759227607643,1.3,207.07,207.03,34.2]
[1759227607847,0.68,207.04,207.03,34.2]
[1759227608145,1.3,207.07,207.03,34.2]
[1759227608653,0.62,207.06,207.03,34.2]
[1759227608828,0.62,207.05,207.02,4.83045116]
[1759227609032,1.3,207.04,206.95,12.07996869]
[1759227609265,0.68,207.02,206.98,20.8]
[1759227609437,0.68,207.02,206.99,39.03115126]
[1759227609644,1.3,207.02,206.99,39.03115126]
[1759227609933,0.62,207.01,206.99,4.83115126]
[1759227610439,2.24345044,207.0,206.97,34.2]
[1759227610649,2.24345044,206.99,206.97,34.2]
[1759227611150,2.24345044,206.99,206.96,34.2]
[1759227611355,2.24345044,207.0,206.97,4.8316181]
[1759227611733,2.24345044,206.99,206.96,34.2]
[1759227611934,18.42572266,207.04,206.9,14.95280149]
[1759227611935,13.59559401,206.96,206.9,14.95280149]
[1759227612155,13.59559401,206.96,206.87,12.08454265]
[1759227612156,2.24345044,206.92,206.88,31.8]
[1759227612451,20.8,207.01,206.89,0.67]
[1759227612452,2.24345044,206.94,206.89,0.67]
[1759227612828,2.24345044,206.91,206.85,0.67]
[1759227613054,2.24345044,206.91,206.86,39.03416647]
[1759227613428,2.24345044,206.91,206.86,34.22]
[1759227613628,2.24345044,206.91,206.86,34.89]
[1759227614353,2.24345044,206.91,206.86,0.67]
[1759227614555,2.24345044,206.91,206.86,34.89]
[1759227615233,13.59559401,206.94,206.87,0.67]
[1759227615433,13.59559401,206.95,206.88,16.9180201]
[1759227615653,13.59559401,206.95,206.89,34.89]
[1759227615952,13.59559401,206.95,206.88,16.9180201]
[1759227615953,2.24345044,206.91,206.88,4.83372003]
[1759227616255,2.24345044,206.91,206.87,5.52393164]
[1759227616549,2.24345044,206.89,206.85,53.63565822]
[1759227616787,2.24345044,206.9,206.86,0.69]
[1759227617146,2.24345044,206.91,206.87,0.69]
[1759227617346,2.24345044,206.9,206.87,0.69]
[1759227617531,2.24345044,206.89,206.88,4.83372003]
[1759227617953,2.24345044,206.89,206.86,4.83412219]
[1759227618146,2.24345044,206.88,206.86,4.83412219]
[1759227618346,1.43821056,206.88,206.86,4.83412219]
[1759227618541,1.43821056,206.89,206.86,5.52412219]
[1759227619154,18.42822765,206.93,206.86,5.52412219]
[1759227619458,1.43821056,206.89,206.86,5.52412219]
[1759227620537,1.43821056,206.88,206.86,4.83412219]
[1759227621060,1.43821056,206.88,206.86,5.52412219]
[1759227622260,1.43821056,206.89,206.86,5.52412219]
[1759227623250,18.42810731,206.94,206.86,4.83412219]
[1759227623449,1.43821056,206.89,206.86,5.52412219]
[1759227623638,1.43821056,206.89,206.87,0.69]
[1759227624347,1.43821056,206.89,206.87,5.52377668]
[1759227625668,1.43821056,206.88,206.84,5.52444154]
[1759227625872,4.83255207,206.93,206.79,0.69]
[1759227625873,1.43821056,206.85,206.79,0.69]
[1759227626043,1.43821056,206.83,206.79,0.69]
[1759227626247,1.43821056,206.83,206.8,0.69]
[1759227626447,1.43821056,206.83,206.81,5.52535612]
[1759227626946,1.43821056,206.83,206.81,4.83535612]
[1759227627348,1.43821056,206.83,206.81,5.52535612]
[1759227627563,1.43821056,206.83,206.81,4.83535612]
[1759227627763,1.43821056,206.82,206.79,5.52560745]
[1759227627961,1.43821056,206.82,206.8,0.69]
[1759227628469,1.43821056,206.82,206.81,4.83535612]
[1759227629048,1.43821056,206.82,206.8,0.69]
[1759227629272,1.43821056,206.81,206.79,4.83559569]
[1759227630067,1.43821056,206.81,206.79,5.52559569]
[1759227630557,1.43821056,206.8,206.79,5.52559569]
[1759227631449,1.43821056,206.8,206.77,5.03606398]
[1759227631650,1.43821056,206.78,206.77,0.2]
[1759227631851,15.03380457,206.78,206.77,0.2]
[1759227632461,1.43821056,206.8,206.77,0.89]
[1759227632673,13.59559401,206.82,206.78,0.69]
[1759227632674,1.43821056,206.81,206.78,0.69]
[1759227632881,1.43821056,206.81,206.77,17.12700569]
[1759227633052,1.43821056,206.81,206.78,0.69]
[1759227633259,1.43821056,206.79,206.77,0.2]
[1759227633454,1.43821056,206.78,206.77,0.2]
[1759227634777,19.86986221,206.78,206.77,0.2]
[1759227638175,13.59559401,206.77,206.74,0.2]
[1759227638373,35.83380457,206.75,206.74,0.2]
[1759227638583,70.07380457,206.75,206.74,0.2]
[1759227638773,74.91056394,206.75,206.74,0.2]
[1759227639963,70.07380457,206.75,206.74,0.2]
[1759227640392,74.91056394,206.75,206.74,0.2]
[1759227642386,70.07380457,206.75,206.74,0.2]
[1759227642578,68.63559401,206.75,206.74,0.2]
[1759227642794,49.27380457,206.75,206.74,0.86]
[1759227643902,49.27380457,206.75,206.74,0.2]
[1759227644587,15.03380457,206.75,206.74,0.2]
[1759227646191,13.59559401,206.75,206.74,0.2]
[1759227646485,15.03380457,206.75,206.74,0.2]
[1759227647683,19.87056394,206.75,206.74,0.2]
[1759227647884,40.67056394,206.75,206.74,0.2]
[1759227650984,74.93056394,206.75,206.74,0.2]
[1759227652205,70.09380457,206.75,206.74,0.2]
[1759227652375,74.93056394,206.75,206.74,0.2]
[1759227658114,73.49235338,206.75,206.74,0.2]
[1759227658295,74.93056394,206.75,206.74,0.2]
[1759227659382,39.23235338,206.75,206.74,0.2]
[1759227659707,74.93056394,206.75,206.74,0.2]
[1759227659895,70.09380457,206.75,206.74,0.86]
[1759227660303,74.93056394,206.75,206.74,0.86]
[1759227660484,74.93056394,206.75,206.74,0.2]
[1759227662904,54.13056394,206.75,206.74,0.2]
[1759227669602,34.39559401,206.71,206.7,0.66]
[1759227669802,70.09380457,206.71,206.7,0.66]
[1759227670787,74.93149989,206.71,206.67,0.66]
[1759227670988,15.03380457,206.68,206.67,0.66]
[1759227671213,49.29380457,206.68,206.67,0.66]
[1759227671714,13.59559401,206.67,206.65,0.66]
[1759227671917,13.59559401,206.65,206.59,4.84050534]
[1759227672106,1.43821056,206.64,206.59,4.84050534]
[1759227672612,1.43821056,206.64,206.57,32.90188855]
[1759227672613,13.59559401,206.63,206.6,5.53015992]
[1759227672815,13.59559401,206.63,206.61,0.69]
[1759227673192,15.03380457,206.63,206.61,0.69]
[1759227677623,1.43821056,206.63,206.61,0.69]
[1759227677998,1.43821056,206.63,206.61,5.53001018]
[1759227678212,1.43821056,206.63,206.62,0.72]
[1759227678603,13.59559401,206.65,206.62,0.72]
[1759227678821,1.43821056,206.63,206.62,0.72]
[1759227679020,20.8,206.67,206.62,0.72]
[1759227679198,13.59559401,206.65,206.62,0.72]
[1759227679820,13.59559401,206.65,206.62,5.55963509]
[1759227680021,13.59559401,206.65,206.63,0.72]
[1759227680822,2.2522552,206.64,206.63,0.72]
[1759227684120,34.26,206.68,206.61,0.72]
[1759227684121,13.59559401,206.63,206.61,0.72]
[1759227684318,2.2522552,206.62,206.6,4.84024296]
[1759227685021,15.84784921,206.62,206.61,0.72]
[1759227685720,13.59559401,206.61,206.56,0.2]
[1759227685911,15.84784921,206.57,206.56,0.2]
[1759227686420,15.84784921,206.57,206.56,0.92]
[1759227686714,15.84784921,206.57,206.56,0.2]
[1759227687706,20.68882321,206.57,206.56,0.2]
[1759227688218,15.84784921,206.57,206.56,0.2]
[1759227689321,13.59559401,206.58,206.56,5.76120836]
[1759227689503,13.59559401,206.58,206.57,0.72]
[1759227690326,39.10006455,206.61,206.57,0.72]
[1759227690509,13.59559401,206.6,206.57,0.72]
[1759227690713,13.59559401,206.6,206.58,0.72]
[1759227690914,13.59559401,206.58,206.56,0.2]
[1759227691113,15.84784921,206.57,206.56,0.2]
[1759227692434,20.68882321,206.57,206.56,0.2]
[1759227693730,20.68882321,206.57,206.56,0.92]
[1759227693928,13.59559401,206.57,206.56,0.92]
[1759227694307,15.84784921,206.57,206.56,0.2]
[1759227694610,20.68882321,206.57,206.56,0.2]
[1759227695310,54.94882321,206.57,206.56,0.2]
[1759227700929,52.69656801,206.57,206.56,0.2]
[1759227701929,54.94882321,206.57,206.56,0.2]
[1759227703016,52.69656801,206.57,206.56,0.87]
[1759227703231,54.94882321,206.57,206.56,0.87]
[1759227703535,54.94882321,206.57,206.56,0.2]
[1759227703736,18.43656801,206.57,206.56,0.87]
[1759227703922,54.94882321,206.57,206.56,0.87]
[1759227704124,54.94882321,206.57,206.56,0.2]
[1759227704523,50.10784921,206.57,206.56,0.2]
[1759227705135,54.94882321,206.57,206.56,0.2]
[1759227706627,50.10784921,206.57,206.56,0.2]
[1759227706937,54.94882321,206.57,206.56,0.2]
[1759227707132,52.69656801,206.57,206.56,0.2]
[1759227711827,52.69656801,206.57,206.56,0.87]
[1759227712028,54.94882321,206.57,206.56,0.87]
[1759227712429,54.94882321,206.57,206.56,0.2]
[1759227716039,54.94882321,206.57,206.56,0.87]
[1759227716440,52.69656801,206.57,206.56,0.87]
[1759227716640,54.94882321,206.57,206.56,0.87]
[1759227720540,54.94882321,206.57,206.56,0.2]
[1759227721764,52.69656801,206.57,206.56,0.2]
[1759227722055,54.94882321,206.57,206.56,0.2]
[1759227722440,75.74882321,206.57,206.56,0.2]
[1759227723566,54.94882321,206.57,206.56,1e-08]
[1759227723980,36.64784921,206.54,206.53,0.2]
[1759227724142,70.90784921,206.54,206.53,0.2]
[1759227725168,70.90784921,206.54,206.53,1e-08]
[1759227725474,75.74952636,206.54,206.53,1e-08]
[1759227725772,34.39559401,206.51,206.5,0.2]
[1759227726068,13.59559401,206.46,206.44,0.67]
[1759227726246,36.5122552,206.45,206.44,0.67]
[1759227726445,13.59559401,206.44,206.4,0.2]
[1759227726670,15.84784921,206.43,206.4,0.2]
[1759227727164,15.84784921,206.43,206.42,0.87]
[1759227727676,13.59559401,206.43,206.42,0.87]
[1759227727862,54.95210634,206.43,206.42,0.87]
[1759227729244,50.10784921,206.43,206.42,0.87]
[1759227729664,54.95210634,206.43,206.42,0.87]
[1759227729845,54.95210634,206.43,206.42,0.2]
[1759227730163,75.75210634,206.43,206.42,0.2]
[1759227730761,13.59559401,206.43,206.42,0.87]
[1759227730958,47.85559401,206.43,206.42,0.87]
[1759227731960,13.59559401,206.43,206.42,0.87]
[1759227732158,47.85559401,206.43,206.42,0.87]
[1759227732476,20.8,206.47,206.42,5.71449181]
[1759227732680,47.85559401,206.46,206.43,0.71]
[1759227733566,47.85559401,206.46,206.43,5.55419005]
[1759227733872,47.85559401,206.46,206.44,0.71]
[1759227735371,47.85559401,206.46,206.44,5.55395385]
[1759227735666,13.59559401,206.46,206.44,5.55395385]
[1759227735963,13.59559401,206.46,206.45,0.71]
[1759227737369,13.59559401,206.51,206.45,0.71]
[1759227737559,13.59559401,206.49,206.45,0.71]
[1759227737746,13.59559401,206.47,206.45,0.71]
[1759227738348,13.59559401,206.5,206.45,5.55373864]
[1759227738567,13.59559401,206.48,206.46,0.71]
[1759227738759,47.85559401,206.48,206.46,0.71]
[1759227738958,13.59559401,206.5,206.46,0.71]
[1759227739162,4.84170563,206.54,206.46,0.71]
[1759227739163,2.2522552,206.54,206.46,0.71]
[1759227739345,13.59559401,206.52,206.47,4.84331864]
[1759227739549,13.59559401,206.52,206.48,0.71]
[1759227741348,13.59559401,206.52,206.48,5.55298668]
[1759227741548,13.59559401,206.52,206.49,0.71]
[1759227742149,13.59559401,206.52,206.5,0.71]
[1759227742348,13.59559401,206.52,206.46,4.84355323]
[1759227742571,13.59559401,206.52,206.51,0.71]
[1759227744172,19.88101153,206.52,206.47,0.71]
[1759227744399,13.59559401,206.5,206.48,0.71]
[1759227746559,13.59559401,206.5,206.49,0.71]
[1759227746754,18.43820902,206.5,206.49,0.71]
[1759227747071,18.43820902,206.5,206.47,0.71]
[1759227747271,18.43820902,206.5,206.48,0.71]
[1759227747465,18.43820902,206.5,206.49,0.71]
[1759227747664,13.59559401,206.5,206.49,0.71]
[1759227749459,34.26,206.51,206.49,0.71]
[1759227749991,47.85559401,206.51,206.5,0.71]
[1759227750484,13.59559401,206.51,206.5,0.71]
[1759227750695,13.59559401,206.54,206.5,5.55261501]
[1759227750986,13.59559401,206.54,206.51,0.71]
[1759227751274,13.59559401,206.54,206.52,0.71]
[1759227751659,13.59559401,206.54,206.53,0.71]
[1759227751855,13.59559401,206.54,206.48,4.84304943]
[1759227752060,13.59559401,206.54,206.49,0.71]
[1759227752260,13.59559401,206.54,206.49,17.65975868]
[1759227752460,13.59559401,206.54,206.5,0.71]
[1759227753581,13.59559401,206.54,206.49,4.84263485]
[1759227753582,13.59559401,206.54,206.51,0.71]
[1759227753881,13.59559401,206.54,206.52,0.71]
[1759227754381,13.59559401,206.54,206.53,0.71]
[1759227754574,13.59559401,206.54,206.5,4.84259836]
[1759227754776,13.59559401,206.54,206.51,0.71]
[1759227755181,19.88054985,206.54,206.42,133.2]
[1759227755371,13.59559401,206.51,206.47,0.71]
[1759227756081,34.24,206.53,206.47,0.71]
[1759227756257,34.24,206.53,206.48,4.84308407]
[1759227756461,34.24,206.53,206.49,0.71]
[1759227756772,13.59559401,206.54,206.49,0.71]
[1759227757369,80.3,206.57,206.49,0.71]
[1759227757664,13.59559401,206.56,206.49,0.71]
[1759227757868,13.59559401,206.54,206.49,0.71]
[1759227758283,13.59559401,206.54,206.5,0.71]
[1759227758587,13.59559401,206.54,206.51,0.71]
[1759227759087,13.59559401,206.54,206.52,0.71]
[1759227759983,18.43728425,206.54,206.5,0.71]
[1759227760289,18.43728425,206.54,206.47,16.95161524]
[1759227760290,18.43728425,206.54,206.51,0.71]
[1759227760480,19.88054325,206.54,206.48,0.71]
[1759227760684,1.443259,206.52,206.45,0.71]
[1759227760876,1.443259,206.51,206.45,0.71]
[1759227761189,1.443259,206.52,206.45,0.71]
[1759227761483,13.59559401,206.51,206.45,0.71]
[1759227762062,4.84261501,206.5,206.45,0.71]
[1759227762386,49.27885301,206.49,206.42,0.86]
[1759227762700,13.59559401,206.47,206.43,0.66]
[1759227763169,1.443259,206.47,206.43,0.66]
[1759227763370,13.59559401,206.48,206.44,0.66]
[1759227763571,13.59559401,206.48,206.45,0.66]
[1759227765293,18.43878197,206.48,206.43,0.66]
[1759227767584,18.43878197,206.48,206.44,0.66]
[1759227768201,13.59559401,206.48,206.44,0.66]
[1759227768898,13.59559401,206.48,206.45,0.66]
[1759227769412,18.43869003,206.48,206.43,5.50424926]
[1759227769598,13.59559401,206.48,206.44,0.66]
[1759227770096,13.59559401,206.48,206.45,0.66]
[1759227770484,34.24,206.49,206.46,0.66]
[1759227770685,34.24,206.49,206.47,0.66]
[1759227770880,1.443259,206.51,206.43,4.84424926]
[1759227770881,13.59559401,206.53,206.48,0.66]
[1759227771078,47.83559401,206.53,206.48,0.66]
[1759227771296,47.83559401,206.53,206.43,16.95489209]
[1759227771496,47.83559401,206.53,206.44,0.66]
[1759227774204,47.83559401,206.53,206.45,16.95325744]
[1759227774395,47.83559401,206.53,206.46,0.66]
[1759227775704,47.83559401,206.53,206.47,4.84331864]
[1759227776002,47.83559401,206.53,206.47,5.50331864]
[1759227776682,47.83559401,206.53,206.47,17.61161524]
[1759227776881,47.83559401,206.53,206.48,0.66]
[1759227777082,47.83559401,206.53,206.49,0.66]
[1759227777281,13.59559401,206.55,206.5,0.66]
[1759227777887,13.59559401,206.55,206.51,4.84238051]
[1759227778513,13.59559401,206.57,206.51,4.84238051]
[1759227778688,22.243259,206.58,206.51,4.84238051]
[1759227778689,13.59559401,206.55,206.52,0.66]
[1759227780006,13.59559401,206.55,206.49,12.76694166]
[1759227780207,34.24,206.56,206.5,17.60915254]
[1759227780410,34.24,206.56,206.51,0.66]
[1759227780609,34.24,206.56,206.52,0.66]
[1759227780793,13.59559401,206.57,206.52,0.66]
[1759227781685,13.59559401,206.57,206.48,20.8]
[1759227781885,13.59559401,206.57,206.49,0.66]
[1759227783114,13.59559401,206.57,206.5,16.94915254]
[1759227783293,13.59559401,206.57,206.51,0.66]
[1759227784203,13.59559401,206.56,206.5,4.84261501]
[1759227784412,13.59559401,206.56,206.5,5.50261501]
[1759227784916,13.59559401,206.56,206.5,4.84261501]
[1759227785110,13.59559401,206.56,206.52,4.84214603]
[1759227785524,1.443259,206.55,206.49,0.66]
[1759227786027,13.59559401,206.53,206.47,4.84329484]
[1759227786312,1.443259,206.49,206.43,0.66]
[1759227787307,13.59559401,206.48,206.43,5.50402313]
[1759227787510,15.03885301,206.48,206.43,4.84402313]
[1759227787815,13.59559401,206.48,206.43,5.50402313]
[1759227788613,13.59559401,206.48,206.43,4.84402313]
[1759227788823,13.59559401,206.48,206.44,0.66]
[1759227789116,13.59559401,206.49,206.44,0.66]
[1759227789893,15.03885301,206.49,206.43,4.84402313]
[1759227790415,15.03885301,206.49,206.43,5.50402313]
[1759227790596,13.59559401,206.49,206.43,5.50402313]
[1759227790916,18.43850489,206.49,206.43,5.50402313]
[1759227791516,13.59559401,206.49,206.43,5.50402313]
[1759227791713,18.4384978,206.49,206.43,5.50402313]
[1759227791927,13.59559401,206.49,206.43,4.84402313]
[1759227792114,34.22,206.5,206.43,5.53402313]
[1759227792417,35.663259,206.5,206.43,5.53402313]
[1759227792619,34.22,206.5,206.43,5.53402313]
[1759227792919,34.22,206.5,206.45,4.84378784]
[1759227793101,34.22,206.5,206.45,5.53378784]
[1759227793903,13.59559401,206.49,206.45,4.84378784]
[1759227794798,13.59559401,206.49,206.43,16.95489996]
[1759227795016,13.59559401,206.49,206.44,0.69]
[1759227795921,13.59559401,206.49,206.43,16.95489996]
[1759227795922,13.59559401,206.49,206.45,0.71]
[1759227796094,20.8,206.51,206.46,0.71]
[1759227796295,15.03885301,206.54,206.46,0.71]
[1759227796525,13.59559401,206.52,206.46,0.71]
[1759227797520,13.59559401,206.53,206.47,4.84331864]
[1759227797729,13.59559401,206.53,206.48,0.71]
[1759227800514,13.59559401,206.53,206.49,4.84284953]
[1759227802543,18.43753536,206.53,206.48,0.71]
[1759227802827,20.69254006,206.53,206.47,4.84309642]
[1759227803631,2.2550047,206.52,206.46,0.71]
[1759227804008,18.43753536,206.53,206.46,0.71]
[1759227804208,20.69254006,206.53,206.46,0.71]
[1759227804732,20.69254006,206.53,206.47,4.84331864]
[1759227805110,20.69254006,206.53,206.47,5.55331864]
[1759227805928,2.2550047,206.52,206.44,12.11005619]
[1759227806122,2.2550047,206.52,206.46,0.71]
[1759227807228,18.43753536,206.53,206.46,0.71]
[1759227807431,2.2550047,206.52,206.46,0.71]
[1759227808121,18.43753536,206.53,206.47,4.84331864]
[1759227808319,2.2550047,206.52,206.47,5.55331864]
[1759227808916,13.59559401,206.53,206.48,0.71]
[1759227809120,18.43751086,206.53,206.48,0.71]
[1759227809320,18.43751086,206.53,206.49,0.71]
[1759227809524,20.69251556,206.53,206.48,0.71]
[1759227810818,20.69251556,206.53,206.48,5.55303769]
[1759227812333,18.43751086,206.53,206.49,0.71]
[1759227812528,18.43751086,206.53,206.47,0.71]
[1759227813124,20.69251556,206.53,206.47,0.71]
[1759227813631,20.69251556,206.53,206.47,5.55323713]
[1759227815832,20.69251556,206.53,206.43,16.95489996]
[1759227816037,20.69251556,206.53,206.48,0.71]
[1759227817237,18.43751086,206.53,206.48,0.71]
[1759227818219,20.69251556,206.53,206.43,16.95489996]
[1759227818420,20.69251556,206.53,206.45,0.71]
[1759227818928,2.2550047,206.49,206.43,4.84425713]
[1759227819128,2.2550047,206.49,206.43,5.55425713]
[1759227819129,7.09799357,206.49,206.43,5.55425713]
[1759227819319,4.84298887,206.49,206.43,5.55425713]
[1759227819731,4.84298887,206.49,206.44,0.71]
[1759227821648,4.84298887,206.49,206.43,4.84425713]
[1759227821861,4.84298887,206.49,206.42,14.86591288]
[1759227821862,15.85059871,206.48,206.42,15.57591288]
[1759227822029,4.84355323,206.46,206.42,0.2]
[1759227822223,4.84355323,206.46,206.42,0.88]
[1759227822746,13.59559401,206.45,206.42,0.2]
[1759227822945,15.85059871,206.45,206.42,0.2]
[1759227823146,2.2550047,206.44,206.42,0.2]
[1759227823329,13.59559401,206.43,206.42,0.2]
[1759227823524,2.2550047,206.43,206.42,0.2]
[1759227823841,36.65059871,206.43,206.42,0.2]
[1759227824153,41.49485584,206.43,206.42,0.2]
[1759227824524,75.69485584,206.43,206.42,0.2]
[1759227827530,73.43985114,206.43,206.42,0.2]
[1759227827735,75.69485584,206.43,206.42,0.2]
[1759227828128,68.59559401,206.43,206.42,0.2]
[1759227829067,73.43985114,206.43,206.42,0.2]
[1759227829240,75.69485584,206.43,206.42,0.2]
[1759227834133,34.39559401,206.43,206.42,0.2]
[1759227834337,68.59559401,206.43,206.42,0.2]
[1759227834846,47.79559401,206.43,206.42,0.88]
[1759227835165,20.8,206.45,206.42,0.88]
[1759227835363,34.2,206.44,206.42,0.88]
[1759227836568,39.04404237,206.44,206.42,0.88]
[1759227837160,39.04404237,206.44,206.42,0.2]
[1759227837368,34.2,206.44,206.42,0.88]
[1759227838233,39.04405559,206.44,206.42,0.88]
[1759227840161,47.79559401,206.44,206.43,0.68]
[1759227840461,13.59559401,206.43,206.42,0.2]
[1759227841260,13.59559401,206.43,206.42,0.88]
[1759227843774,18.43985114,206.43,206.42,0.88]
[1759227844143,13.59559401,206.43,206.42,0.88]
[1759227845869,18.43985114,206.43,206.42,0.88]
[1759227847168,13.59559401,206.43,206.42,0.88]
[1759227849359,18.43985114,206.43,206.42,0.2]
[1759227849562,20.69485584,206.43,206.42,0.2]
[1759227854277,36.65059871,206.43,206.42,0.87]
[1759227854452,36.65059871,206.43,206.42,0.2]
[1759227854954,41.49485584,206.43,206.42,0.2]
[1759227855550,75.67485584,206.43,206.42,0.2]
[1759227856996,75.67485584,206.43,206.42,0.9]
[1759227857569,75.67485584,206.43,206.42,0.2]
[1759227859656,54.87485584,206.43,206.42,0.2]
[1759227860465,75.67485584,206.43,206.42,0.2]
[1759227862278,74.86494709,206.43,206.42,0.2]
[1759227863384,34.39559401,206.43,206.42,0.9]
[1759227863567,68.57559401,206.43,206.42,0.9]
[1759227863769,70.02068996,206.43,206.42,0.9]
[1759227864155,34.39559401,206.43,206.42,0.9]
[1759227864368,13.59559401,206.43,206.42,0.9]
[1759227864565,13.59559401,206.48,206.42,5.74449181]